bitfinex/quotes_ETHUSD_20250426
["timestamp","ask_amount","ask_price","bid_price","bid_amount"]
[1745697282085,5.52303556,1810.6,1810.4,0.15426179]
[1745697282387,5.52303556,1810.6,1810.3,0.766]
[1745697282604,5.52303556,1810.6,1810.4,0.15426179]
[1745697282832,6.33826182,1810.7,1810.4,0.15426179]
[1745697283011,6.33826182,1810.7,1810.3,6.28993861]
[1745697283202,6.33826182,1810.7,1810.5,0.15426179]
[1745697283401,13.51801809,1810.7,1810.3,6.28993861]
[1745697283612,6.33826182,1810.7,1810.6,0.15426179]
[1745697283840,6.33826182,1810.7,1810.3,6.28993861]
[1745697284336,6.33826182,1810.7,1810.4,0.15447737]
[1745697284531,4.707,1810.8,1810.5,0.8129]
[1745697284697,4.707,1810.8,1810.6,5.67747251]
[1745697284903,4.707,1810.8,1810.6,6.95449473]
[1745697285104,6.11,1810.9,1810.6,6.95449473]
[1745697285734,6.11,1810.9,1810.7,5.52270642]
[1745697285933,6.11,1810.9,1810.7,0.75653]
[1745697286137,6.11,1810.9,1810.8,0.15447737]
[1745697286343,11.63211607,1810.9,1810.8,0.15447737]
[1745697286501,11.63211607,1810.9,1810.5,7.09254391]
[1745697286701,6.11,1810.9,1810.6,0.15447737]
[1745697287041,6.11,1810.9,1810.6,5.67750782]
[1745697288038,6.11,1810.9,1810.6,0.15447737]
[1745697288344,11.63212247,1810.9,1810.6,0.15447737]
[1745697289643,5.52212247,1810.9,1810.6,0.15447737]
[1745697289940,5.5219672,1811.0,1810.6,0.15447737]
[1745697290126,5.5219672,1811.0,1810.6,5.6774762]
[1745697290334,7.0970305,1811.0,1810.6,5.6774762]
[1745697290745,7.8820305,1811.0,1810.6,5.6774762]
[1745697293840,7.8820305,1811.0,1810.6,11.20030694]
[1745697293841,5.5219672,1811.0,1810.6,11.20030694]
[1745697294051,11.01368006,1811.1,1810.6,11.20015741]
[1745697294248,11.01368006,1811.1,1810.6,11.2001041]
[1745697294542,5.52181232,1811.0,1810.6,5.67727336]
[1745697300460,5.52181232,1811.0,1810.7,0.7553]
[1745697300784,5.52181232,1811.0,1810.8,0.15313004]
[1745697303080,10.2286866,1811.1,1810.8,0.15313004]
[1745697303391,4.707,1811.1,1810.8,0.15313004]
[1745697303548,10.22864104,1811.1,1810.8,0.15313004]
[1745697304773,5.52201835,1811.0,1810.8,0.15313004]
[1745697306793,10.22874686,1811.1,1810.8,0.15313004]
[1745697306957,5.52188869,1811.0,1810.8,0.15313004]
[1745697308854,11.80363811,1811.1,1810.8,0.15313004]
[1745697309176,17.32542119,1811.1,1810.8,0.15313004]
[1745697309378,5.52181494,1811.0,1810.8,0.15313004]
[1745697309578,11.80363811,1811.1,1810.8,0.15313004]
[1745697310100,6.28200997,1811.1,1810.8,0.15313004]
[1745697310257,11.80357584,1811.1,1810.8,0.15313004]
[1745697310453,6.11,1811.5,1810.8,3.94039395]
[1745697310697,17.3853,1811.7,1811.2,6.96276879]
[1745697311001,5.52002073,1811.6,1811.3,0.15226769]
[1745697313596,22.90514699,1811.7,1811.3,0.15226769]
[1745697314097,5.52028966,1811.8,1811.4,0.91716769]
[1745697314269,5.52028966,1811.8,1811.4,7.19403407]
[1745697314457,5.52028966,1811.8,1811.4,1.67358331]
[1745697314853,5.52028966,1811.8,1811.4,1.52131562]
[1745697315057,5.52028966,1811.8,1811.4,7.04186183]
[1745697315289,5.52028966,1811.8,1811.5,0.15226769]
[1745697316493,11.03994971,1811.8,1811.5,0.15226769]
[1745697316675,5.52028966,1811.8,1811.5,0.15226769]
[1745697317594,5.51984308,1811.7,1811.5,0.15226769]
[1745697317797,5.51998233,1811.6,1811.5,0.15226769]
[1745697318004,6.27806089,1811.7,1811.5,0.15226769]
[1745697318999,6.27806089,1811.7,1811.6,3.0]
[1745697319398,6.27806089,1811.7,1811.6,3.14903547]
[1745697320512,7.45789967,1811.7,1811.6,0.14903547]
[1745697320688,6.57903878,1811.7,1811.2,0.8012]
[1745697320869,5.52059962,1811.4,1811.2,0.8012]
[1745697321064,5.52059962,1811.4,1811.3,0.13386885]
[1745697321902,6.07265958,1811.4,1811.3,0.13386885]
[1745697322101,5.52098638,1811.3,1811.0,0.8012]
[1745697322294,5.52098638,1811.3,1811.1,0.13413778]
[1745697323411,6.32804594,1811.4,1811.1,0.13413778]
[1745697323978,6.32804594,1811.4,1811.2,3.0]
[1745697324290,6.32804594,1811.4,1811.3,0.13413778]
[1745697328614,7.51289353,1811.4,1811.3,0.13413778]
[1745697329909,6.32804594,1811.4,1811.3,0.13413778]
[1745697332226,5.52074594,1811.4,1811.3,0.13413778]
[1745697333126,5.52042999,1811.5,1811.3,0.13413778]
[1745697333485,10.94405961,1811.7,1811.3,0.13413778]
[1745697333703,10.94405961,1811.7,1811.3,5.65491062]
[1745697333704,10.16085961,1811.7,1811.3,5.65491062]
[1745697334328,5.51999579,1811.6,1811.3,0.13413778]
[1745697335432,5.52029007,1811.5,1811.3,0.13413778]
[1745697336303,5.5200862,1811.6,1811.3,0.13413778]
[1745697337328,5.5205918,1811.4,1811.3,0.13413778]
[1745697337534,5.51998233,1811.6,1811.3,0.13413778]
[1745697337698,6.53608056,1811.6,1811.4,3.0]
[1745697337898,6.53608056,1811.6,1811.5,0.13478328]
[1745697340208,5.51998233,1811.6,1811.5,0.13478328]
[1745697347641,0.7677,1811.5,1810.8,0.8209]
[1745697347948,0.7677,1811.2,1810.6,0.8209]
[1745697348146,5.52174724,1811.1,1810.8,0.8209]
[1745697348847,10.13136046,1811.2,1810.8,0.8209]
[1745697353376,4.61,1811.2,1810.9,0.7775]
[1745697353572,4.61,1811.2,1810.9,1.40747153]
[1745697354233,10.13123296,1811.2,1810.9,1.40747153]
[1745697355278,10.13123296,1811.2,1811.0,0.11403437]
[1745697356672,5.52150626,1811.1,1811.0,0.11403437]
[1745697358395,6.32270626,1811.1,1811.0,0.11403437]
[1745697358683,5.52205312,1811.0,1810.7,0.7608]
[1745697358876,5.52232027,1810.9,1810.5,3.0]
[1745697359079,5.52254623,1810.8,1810.5,0.7608]
[1745697359282,5.52230357,1810.9,1810.5,0.7608]
[1745697359495,5.52263774,1810.8,1810.5,0.7608]
[1745697360557,5.52225914,1810.9,1810.5,1.5176355]
[1745697360778,5.52191793,1811.0,1810.6,5.52285689]
[1745697360973,5.52191793,1811.0,1810.7,0.55228569]
[1745697361283,5.52191793,1811.0,1810.8,0.7866]
[1745697362047,5.52211607,1810.9,1810.8,0.7866]
[1745697362283,5.52200522,1811.0,1810.8,0.7866]
[1745697363184,5.52170102,1811.1,1810.8,0.7866]
[1745697363357,5.52170102,1811.1,1810.8,1.41752899]
[1745697363961,10.1312424,1811.2,1810.8,1.41752899]
[1745697364296,4.61,1811.2,1810.8,6.9399283]
[1745697365790,10.13133659,1811.2,1810.8,6.9399283]
[1745697366292,4.61,1811.2,1810.9,5.52209087]
[1745697366488,4.61,1811.2,1810.9,6.76827116]
[1745697366893,6.32082453,1811.4,1811.0,6.3534069]
[1745697367193,5.52072453,1811.4,1811.0,6.3534069]
[1745697367689,11.04157674,1811.4,1811.0,0.8316]
[1745697367865,5.52072453,1811.4,1811.0,0.8316]
[1745697368073,5.52072453,1811.4,1811.0,6.35336716]
[1745697368800,10.1314611,1811.5,1811.2,0.7753]
[1745697369094,10.1314611,1811.5,1811.0,6.83376189]
[1745697369095,5.52075874,1811.4,1811.0,6.33735868]
[1745697371994,5.52075874,1811.4,1811.1,0.11430289]
[1745697372807,5.52075874,1811.4,1811.0,6.33735868]
[1745697372966,5.52075874,1811.4,1811.1,0.63373587]
[1745697373307,5.52075874,1811.4,1811.2,0.11430289]
[1745697373809,5.52075874,1811.4,1811.0,6.33735868]
[1745697374197,5.52075874,1811.4,1811.1,0.11430289]
[1745697374715,10.13148843,1811.5,1811.2,0.7901]
[1745697375211,10.13148843,1811.5,1811.3,0.11430289]
[1745697375423,5.52017734,1811.6,1811.4,0.7901]
[1745697375584,10.13017734,1811.6,1811.4,0.7901]
[1745697375979,10.13017734,1811.6,1811.5,0.11430289]
[1745697377085,0.0008,1811.9,1811.5,0.11430289]
[1745697377274,5.51949438,1811.8,1811.5,0.11430289]
[1745697377814,5.51976181,1811.7,1811.5,0.11430289]
[1745697379525,7.38957791,1811.8,1811.5,0.11430289]
[1745697380078,5.51969928,1811.7,1811.5,0.11430289]
[1745697381184,7.38962265,1811.8,1811.5,0.11430289]
[1745697381506,6.62352265,1811.8,1811.5,0.11430289]
[1745697381811,5.51956071,1811.8,1811.5,0.11430289]
[1745697382016,6.34769433,1811.7,1811.5,0.11430289]
[1745697382217,5.51954882,1811.8,1811.5,0.11430289]
[1745697382617,6.9388,1811.9,1811.5,0.11430289]
[1745697383278,5.51951453,1811.8,1811.5,0.11430289]
[1745697383900,6.9388,1811.9,1811.5,0.11430289]
[1745697384097,5.51969375,1811.7,1811.5,0.11430289]
[1745697385420,5.51955329,1811.8,1811.5,0.11430289]
[1745697386620,11.03920717,1811.8,1811.5,0.11430289]
[1745697387031,2.2686959,1811.7,1811.0,0.8298]
[1745697387185,5.52074896,1811.4,1811.0,0.8298]
[1745697387521,5.52074896,1811.4,1811.0,1.60903344]
[1745697388018,5.52074896,1811.4,1811.0,7.13074997]
[1745697388523,10.15312533,1811.6,1811.2,1.4406959]
[1745697388688,5.52030891,1811.5,1811.2,1.4406959]
[1745697389248,5.52067167,1811.4,1811.2,1.4406959]
[1745697390713,10.15314811,1811.6,1811.2,1.4406959]
[1745697390714,5.52044829,1811.5,1811.2,1.4406959]
[1745697394762,10.15310564,1811.6,1811.3,0.8298]
[1745697394956,11.80319577,1811.6,1811.3,0.8298]
[1745697395263,6.28309013,1811.6,1811.3,6.35060995]
[1745697395466,4.633,1811.6,1811.3,6.35060995]
[1745697396777,5.5197957,1811.7,1811.3,6.35060995]
[1745697396980,16.26256364,1811.8,1811.4,5.52055301]
[1745697397163,10.15256364,1811.8,1811.4,6.96124891]
[1745697397341,10.15256364,1811.8,1811.4,8.292419]
[1745697397541,10.15256364,1811.8,1811.5,0.8298]
[1745697397850,15.67219255,1811.8,1811.5,0.8298]
[1745697398050,10.15256364,1811.8,1811.5,0.8298]
[1745697399333,10.15256364,1811.8,1811.4,8.29243517]
[1745697399334,5.51985293,1811.7,1811.3,6.96137057]
[1745697399530,5.51985293,1811.7,1811.3,8.70920763]
[1745697399773,5.51985293,1811.7,1811.3,7.26851173]
[1745697402578,10.15254498,1811.8,1811.3,12.78917072]
[1745697402779,10.15254498,1811.8,1811.4,5.52048271]
[1745697403663,5.51969877,1811.7,1811.3,7.26854325]
[1745697404185,5.51969877,1811.7,1811.3,1.74783706]
[1745697404186,5.51987461,1811.7,1811.3,1.74783706]
[1745697404340,5.51987461,1811.7,1811.3,0.7517]
[1745697404540,5.51987461,1811.7,1811.3,6.2724836]
[1745697406675,5.51987461,1811.7,1811.3,11.79318581]
[1745697406844,10.15256203,1811.8,1811.4,5.52053442]
[1745697409145,10.15256203,1811.8,1811.3,6.27241811]
[1745697409477,4.633,1811.8,1811.5,0.7875]
[1745697409870,10.15238433,1811.8,1811.5,0.7875]
[1745697410667,0.0008,1811.9,1811.5,0.7875]
[1745697410871,0.0008,1811.9,1811.8,0.7875]
[1745697412785,0.0008,1811.9,1811.6,0.75639118]
[1745697413087,5.52000843,1811.9,1811.6,1.54389118]
[1745697413388,0.0008,1811.9,1811.6,0.7875]
[1745697413553,0.55277281,1811.9,1811.6,0.7875]
[1745697413753,0.0008,1811.9,1811.6,0.7875]
[1745697414853,5.52006048,1811.9,1811.6,0.7875]
[1745697418693,0.0008,1811.9,1811.5,0.7523]
[1745697418987,0.0008,1811.9,1811.4,1.50869118]
[1745697418988,5.5198345,1811.7,1811.4,1.50869118]
[1745697419189,5.52041937,1811.5,1811.2,0.7996]
[1745697419397,5.52072079,1811.4,1811.1,0.7996]
[1745697420290,5.5209449,1811.3,1811.1,0.7996]
[1745697420587,5.5209449,1811.3,1810.9,7.36635593]
[1745697420884,5.5209449,1811.3,1810.9,7.07791825]
[1745697421091,5.5209449,1811.3,1810.9,7.78571007]
[1745697422991,5.52060295,1811.4,1810.9,7.78571007]
[1745697423167,5.52092262,1811.3,1810.9,7.78571007]
[1745697423692,5.52076356,1811.4,1810.9,13.30760323]
[1745697423894,5.52076356,1811.4,1811.0,5.52178205]
[1745697424190,5.52046226,1811.5,1811.2,0.7996]
[1745697424990,11.04100201,1811.5,1811.2,0.7996]
[1745697425195,11.04104569,1811.5,1811.2,0.7996]
[1745697425492,5.52046226,1811.5,1811.2,0.7996]
[1745697425895,6.07206404,1811.6,1811.2,6.32066621]
[1745697426190,11.59233116,1811.6,1811.2,0.7996]
[1745697426390,6.07206404,1811.6,1811.2,0.7996]
[1745697426816,5.52029193,1811.5,1811.2,0.7996]
[1745697428010,5.52016822,1811.6,1811.2,0.7996]
[1745697428180,5.52029759,1811.5,1811.2,0.7996]
[1745697428375,5.52024345,1811.6,1811.2,0.7996]
[1745697428572,5.52024345,1811.6,1811.2,6.3206747]
[1745697429680,10.1418612,1811.7,1811.3,0.75639118]
[1745697429909,15.66178819,1811.7,1811.3,6.27710745]
[1745697430292,10.1418612,1811.7,1811.3,6.27710745]
[1745697430978,10.1418612,1811.7,1811.4,0.7848]
[1745697434681,4.622,1811.7,1811.4,0.7848]
[1745697435607,10.14169565,1811.7,1811.4,0.7848]
[1745697435993,4.622,1811.7,1811.4,0.7848]
[1745697436494,10.14168126,1811.7,1811.4,0.7848]
[1745697438217,10.14168126,1811.7,1811.5,3.0]
[1745697440222,5.51968126,1811.7,1811.5,3.0]
[1745697441947,5.51998233,1811.6,1811.5,3.0]
[1745697442227,5.51987193,1811.7,1811.5,3.0]
[1745697445426,4.6238,1811.9,1811.6,0.7987]
[1745697445725,10.14307085,1811.9,1811.6,0.7987]
[1745697446311,5.51950151,1811.8,1811.6,0.7987]
[1745697448428,10.14309518,1811.9,1811.6,0.7987]
[1745697448623,15.66242616,1811.9,1811.6,0.7987]
[1745697448833,5.5193848,1811.8,1811.6,0.7987]
[1745697451416,10.14306274,1811.9,1811.6,0.7987]
[1745697451747,4.6238,1811.9,1811.6,0.7987]
[1745697451910,10.14302949,1811.9,1811.6,0.7987]
[1745697452109,5.5193782,1811.8,1811.6,0.7987]
[1745697452906,0.0008,1811.9,1811.6,6.69834885]
[1745697453107,5.51989522,1811.9,1811.6,1.17857]
[1745697454342,5.51989522,1811.9,1811.6,0.7987]
[1745697457154,5.51953168,1811.8,1811.5,3.0]
[1745697457324,5.5196008,1811.8,1811.5,3.0]
[1745697461353,5.52010904,1811.9,1811.5,8.52019452]
[1745697462756,5.52010904,1811.9,1811.5,3.0]
[1745697463962,5.52010904,1811.9,1811.5,8.5201345]
[1745697464183,5.52010904,1811.9,1811.5,10.00576541]
[1745697465569,11.03947155,1811.9,1811.5,4.48563091]
[1745697465766,5.52010904,1811.9,1811.5,4.48563091]
[1745697465968,5.51938584,1811.8,1811.5,4.48563091]
[1745697466590,5.5199779,1811.9,1811.5,10.00587868]
[1745697466760,5.51940872,1811.8,1811.5,4.48563091]
[1745697467976,5.51940872,1811.8,1811.5,3.0]
[1745697471266,5.51979041,1811.7,1811.5,3.0]
[1745697471453,5.51956092,1811.8,1811.5,3.0]
[1745697476504,5.51988084,1811.7,1811.5,3.0]
[1745697476661,5.51998233,1811.6,1811.5,3.0]
[1745697476859,6.70562865,1811.6,1811.5,3.0]
[1745697477170,11.29062865,1811.6,1811.5,3.0]
[1745697482006,5.52054914,1811.5,1811.1,2.20829472]
[1745697482564,5.52054914,1811.5,1811.1,7.72968869]
[1745697484121,5.52054136,1811.5,1811.1,7.72968869]
[1745697484265,5.52054136,1811.5,1811.1,8.50817863]
[1745697484470,10.10515338,1811.6,1811.1,2.98678466]
[1745697484714,10.10515338,1811.6,1811.2,5.52116987]
[1745697485300,15.6254095,1811.6,1811.1,8.50809954]
[1745697485503,10.10515338,1811.6,1811.2,5.52119557]
[1745697485683,10.10515338,1811.6,1811.3,1.99311428]
[1745697485996,5.52029182,1811.5,1811.3,1.44099472]
[1745697487208,5.52029182,1811.5,1811.4,3.0]
[1745697489578,4.585,1811.6,1811.4,3.8212]
[1745697489889,10.10511575,1811.6,1811.4,3.8212]
[1745697490185,4.585,1811.6,1811.4,3.8212]
[1745697490388,10.10499958,1811.6,1811.4,3.8212]
[1745697491305,5.51949149,1811.8,1811.5,2.26219472]
[1745697491511,10.10441036,1811.8,1811.5,2.26219472]
[1745697492677,15.62406787,1811.8,1811.5,2.26219472]
[1745697493179,5.51973742,1811.7,1811.5,2.26219472]
[1745697493406,5.51973742,1811.7,1811.4,3.0]
[1745697493911,5.52020537,1811.6,1811.4,3.0]
[1745697502154,6.30835444,1811.7,1811.4,3.0]
[1745697503463,11.82828714,1811.7,1811.4,3.0]
[1745697503663,5.52000867,1811.6,1811.4,3.0]
[1745697504068,6.30824414,1811.7,1811.4,3.0]
[1745697504239,11.82821051,1811.7,1811.4,3.0]
[1745697505561,5.52004707,1811.6,1811.4,3.0]
[1745697507367,5.52028705,1811.5,1811.4,3.0]
[1745697507541,6.32868705,1811.5,1811.4,3.0]
[1745697511347,12.43844707,1811.6,1811.4,3.0]
[1745697512171,17.95872473,1811.6,1811.4,3.0]
[1745697512378,17.95871825,1811.6,1811.4,3.0]
[1745697512536,5.52028705,1811.5,1811.4,3.0]
[1745697522879,5.52016415,1811.6,1811.4,3.0]
[1745697526488,5.51981168,1811.7,1811.4,3.0]
[1745697527462,4.585,1811.8,1811.4,3.0]
[1745697527663,5.51967941,1811.7,1811.4,4.70481319]
[1745697531361,5.52028705,1811.5,1811.4,3.0]
[1745697532498,5.52012519,1811.6,1811.4,3.0]
[1745697532693,11.04039636,1811.6,1811.4,3.0]
[1745697532996,5.52012519,1811.6,1811.4,3.0]
[1745697533793,11.04036795,1811.6,1811.4,3.0]
[1745697534772,5.52012519,1811.6,1811.4,3.0]
[1745697535494,11.04036911,1811.6,1811.4,3.0]
[1745697535696,5.52012519,1811.6,1811.4,3.0]
[1745697536564,5.52028705,1811.5,1811.4,3.0]
[1745697536764,5.52012519,1811.6,1811.4,3.0]
[1745697537766,5.52028705,1811.5,1811.4,3.0]
[1745697539887,5.5201741,1811.6,1811.4,3.0]
[1745697540292,6.32824447,1811.7,1811.4,3.0]
[1745697540481,7.41956892,1811.7,1811.4,3.0]
[1745697540804,5.52000764,1811.6,1811.4,3.0]
[1745697550322,0.0008,1812.0,1811.5,0.7641]
[1745697550487,0.0008,1812.0,1811.6,6.96067875]
[1745697551097,5.51958782,1812.0,1811.6,6.96067875]
[1745697551300,5.51958782,1812.0,1811.6,8.28517092]
[1745697554939,5.51958782,1812.0,1811.9,7.72402146]
[1745697554940,0.0008,1812.0,1811.9,7.72402146]
[1745697556216,0.0008,1812.0,1811.9,10.72402146]
[1745697558021,0.0008,1812.0,1811.9,3.7641]
[1745697558207,5.51956379,1812.0,1811.9,3.0]
[1745697558406,6.62337667,1812.0,1811.9,3.0]
[1745697558892,5.51956379,1812.0,1811.9,3.0]
[1745697561198,6.30376379,1812.0,1811.9,3.0]
[1745697561591,5.51956379,1812.0,1811.9,3.0]
[1745697561836,5.51956379,1812.0,1811.7,0.7641]
[1745697562015,0.0008,1812.0,1811.7,0.7641]
[1745697562220,0.0008,1812.0,1811.8,0.75605061]
[1745697562434,0.0008,1812.0,1811.8,1.4600271]
[1745697562609,5.5195832,1812.0,1811.8,1.4600271]
[1745697562906,5.5195832,1812.0,1811.8,0.75605061]
[1745697563133,5.5195832,1812.0,1811.7,0.7641]
[1745697566336,5.5195832,1812.0,1811.8,3.0]
[1745697568137,5.51906838,1811.9,1811.8,3.0]
[1745697569243,5.51975879,1812.0,1811.8,3.0]
[1745697569443,11.03879511,1812.0,1811.8,3.0]
[1745697571143,5.51975879,1812.0,1811.8,3.0]
[1745697572967,11.038776,1812.0,1811.8,3.0]
[1745697573347,5.51975879,1812.0,1811.8,3.0]
[1745697573722,11.03877275,1812.0,1811.8,3.0]
[1745697574048,11.03877089,1812.0,1811.8,3.0]
[1745697574842,0.0008,1812.0,1811.8,3.0]
[1745697575142,0.0008,1812.0,1811.8,3.37641]
[1745697577662,0.0008,1812.0,1811.9,10.07871899]
[1745697577864,0.005,1812.8,1812.3,5.51761104]
[1745697578082,0.005,1812.8,1812.7,0.8036]
[1745697578225,0.005,1812.8,1812.7,6.32023264]
[1745697578426,1e-08,1812.8,1812.7,16.44323895]
[1745697578740,0.4098601,1813.2,1813.1,3.8036]
[1745697578939,0.4098601,1813.2,1813.1,0.8036]
[1745697579267,0.4098601,1813.2,1813.1,10.11499421]
[1745697580127,0.4098601,1813.2,1813.1,13.11499421]
[1745697580334,1e-08,1813.4,1813.3,10.06735786]
[1745697580680,1e-08,1813.4,1813.3,1.55255061]
[1745697582148,0.68946293,1814.8,1813.3,1.55255061]
[1745697582350,0.814,1814.7,1813.9,0.7965]
[1745697582564,5.5116947,1814.4,1814.0,0.75605061]
[1745697582729,0.814,1814.7,1814.2,0.75605061]
[1745697582933,5.51089895,1814.6,1814.2,0.75605061]
[1745697583197,0.55108989,1814.5,1814.2,0.75605061]
[1745697583479,5.51089895,1814.6,1814.2,0.75605061]
[1745697583480,5.51072567,1814.7,1814.4,0.75605061]
[1745697583779,0.4098601,1815.0,1814.6,6.26684331]
[1745697583989,0.4098601,1815.0,1814.6,0.75605061]
[1745697584133,0.4098601,1815.0,1814.4,0.75605061]
[1745697584350,5.5105527,1814.7,1814.4,0.75605061]
[1745697584573,5.51039099,1814.8,1814.4,0.75605061]
[1745697584786,5.5105527,1814.7,1814.6,0.75605061]
[1745697585314,5.50873127,1815.4,1814.6,0.75605061]
[1745697585315,0.00589302,1815.7,1815.6,5.5078211]
[1745697585587,1e-08,1815.7,1815.6,4.75153981]
[1745697585889,1e-08,1815.7,1815.6,0.87006224]
[1745697586075,1e-08,1815.7,1815.6,2.68266684]
[1745697586755,1e-08,1815.7,1815.6,6.39790602]
[1745697586957,1e-08,1815.7,1815.6,1.86766684]
[1745697588401,0.8188,1815.6,1814.9,0.815]
[1745697588566,5.5087713,1815.3,1814.9,0.815]
[1745697588889,1.43308,1815.6,1814.6,0.815]
[1745697589118,5.50934986,1815.1,1814.6,0.815]
[1745697589255,10.83313312,1815.2,1814.6,6.32582134]
[1745697589672,5.324,1815.2,1814.7,0.05509951]
[1745697589866,5.8564,1815.2,1814.6,10.04100928]
[1745697590071,5.8564,1815.2,1814.7,5.51050689]
[1745697590398,11.36549412,1815.2,1814.6,10.04101743]
[1745697590559,5.8564,1815.2,1814.8,3.0]
[1745697591065,11.36543613,1815.2,1814.8,3.0]
[1745697591270,6.75608,1815.6,1814.9,9.22496616]
[1745697591592,0.61428,1815.6,1815.2,5.50888353]
[1745697591756,0.61428,1815.6,1815.1,0.815]
[1745697591951,0.61428,1815.6,1815.2,5.50902784]
[1745697592180,6.12212186,1815.6,1814.9,3.0]
[1745697592384,0.61221219,1815.5,1815.1,5.50931216]
[1745697592660,5.50766422,1815.7,1815.1,5.50909944]
[1745697592881,5.5078278,1815.6,1815.1,5.50909944]
[1745697593071,5.50764053,1815.7,1815.1,5.50909944]
[1745697593276,5.50764786,1815.7,1815.2,5.50903021]
[1745697593595,5.50764786,1815.7,1815.2,5.50897819]
[1745697593780,0.55076479,1815.6,1815.2,5.50897819]
[1745697594093,6.05858681,1815.6,1815.0,3.71523918]
[1745697594391,6.05874364,1815.6,1815.1,5.50927723]
[1745697594791,5.50830872,1815.5,1815.0,3.71523918]
[1745697594997,5.50830872,1815.5,1815.0,9.22471391]
[1745697595289,0.60590735,1815.5,1815.0,9.22462174]
[1745697595537,0.60590735,1815.5,1815.1,5.50932663]
[1745697595663,6.11406749,1815.5,1815.0,9.22473914]
[1745697596693,0.60590735,1815.5,1815.1,5.50933825]
[1745697596863,6.11403598,1815.5,1815.0,5.50945621]
[1745697597063,5.50893822,1815.3,1814.9,3.0]
[1745697597287,5.50893822,1815.3,1814.8,3.7641]
[1745697597288,5.50920755,1815.2,1814.8,3.0]
[1745697597490,5.50947487,1815.1,1814.8,3.0]
[1745697598393,5.50977598,1815.0,1814.8,3.0]
[1745697598558,0.5509776,1815.0,1814.8,3.0]
[1745697598961,5.50946894,1815.1,1814.8,3.0]
[1745697599565,5.50971134,1815.0,1814.8,3.0]
[1745697599765,5.50948833,1815.1,1814.8,3.0]
[1745697600303,5.50994545,1814.9,1814.8,3.0]
[1745697600511,11.01973349,1815.0,1814.8,3.0]
[1745697600670,5.50994545,1814.9,1814.8,3.0]
[1745697601298,6.61178081,1815.0,1814.8,3.0]
[1745697601501,5.50994545,1814.9,1814.8,3.0]
[1745697601675,5.50980746,1815.0,1814.8,3.0]
[1745697601890,5.50994545,1814.9,1814.8,3.0]
[1745697603302,5.50933832,1815.1,1814.8,3.0]
[1745697603688,5.50957134,1815.1,1814.8,3.0]
[1745697603886,1.10186376,1815.1,1814.8,3.0]
[1745697604106,5.50960997,1815.1,1814.8,3.0]
[1745697604288,5.50974063,1815.0,1814.8,3.0]
[1745697604620,5.50926457,1815.2,1814.8,8.51020538]
[1745697604802,5.50924546,1815.2,1814.8,3.0]
[1745697605114,5.50946367,1815.1,1814.8,3.0]
[1745697605691,7.14311506,1815.2,1814.8,3.0]
[1745697605892,0.6114036,1815.4,1814.9,0.7846]
[1745697606090,6.12000423,1815.4,1814.9,6.29439339]
[1745697606294,0.6114036,1815.4,1815.0,5.50960641]
[1745697606486,5.50831092,1815.5,1815.0,5.50950985]
[1745697607010,5.50799564,1815.6,1815.0,9.22474903]
[1745697607211,5.50840642,1815.5,1815.0,9.22474903]
[1745697607509,5.50840642,1815.5,1815.1,5.5092933]
[1745697607715,5.50805894,1815.6,1815.1,5.5092933]
[1745697607915,6.68776099,1815.6,1815.1,5.5092933]
[1745697608113,1.17970205,1815.6,1815.0,9.22463363]
[1745697608315,5.50828878,1815.5,1815.0,9.22463363]
[1745697608629,0.78130001,1815.7,1815.0,9.22463363]
[1745697608630,0.78130001,1815.7,1815.1,5.50932052]
[1745697608930,1e-08,1815.7,1815.3,0.7846]
[1745697609086,1e-08,1815.7,1815.4,9.27863371]
[1745697609289,1e-08,1815.7,1815.6,9.22306028]
[1745697609513,1e-08,1815.7,1815.6,3.71523918]
[1745697609718,1e-08,1815.7,1815.6,5.56289045]
[1745697610090,1e-08,1815.7,1815.6,5.5078211]
[1745697610425,1e-08,1815.7,1815.4,8.50839824]
[1745697610592,1e-08,1815.7,1815.4,3.05507685]
[1745697610802,1e-08,1815.7,1815.5,5.50798508]
[1745697610988,1e-08,1815.7,1815.5,5.50792565]
[1745697611314,1e-08,1815.7,1815.6,5.5078211]
[1745697611682,1e-08,1815.7,1815.6,6.5078211]
[1745697612385,1e-08,1815.7,1815.6,7.31888892]
[1745697612820,1e-08,1815.7,1815.6,7.2638211]
[1745697613023,5.50751777,1815.7,1815.6,1.0]
[1745697613210,0.55075179,1815.7,1815.6,1.0]
[1745697613383,6.05826955,1815.7,1815.6,1.0]
[1745697613585,1e-08,1815.7,1815.6,1.0]
[1745697616415,1e-08,1815.7,1815.6,11.52356028]
[1745697616846,1e-08,1815.7,1815.6,14.52356028]
[1745697617009,1e-08,1815.7,1815.6,1.7505]
[1745697617345,1e-08,1815.7,1815.6,11.52356028]
[1745697617550,1e-08,1815.7,1815.6,16.53223578]
[1745697620852,5.50751777,1815.7,1815.6,1.0]
[1745697621053,1e-08,1815.7,1815.6,1.0]
[1745697621422,1e-08,1815.7,1815.6,6.5078211]
[1745697622227,1e-08,1815.7,1815.6,9.5628902]
[1745697622430,1e-08,1815.7,1815.6,11.06999046]
[1745697623067,1e-08,1815.7,1815.6,15.33522964]
[1745697623219,1e-08,1815.7,1815.6,15.28016054]
[1745697623562,1e-08,1815.7,1815.6,16.08106054]
[1745697625764,1e-08,1815.7,1815.6,22.08106054]
[1745697629980,0.7823,1816.5,1815.6,22.08106054]
[1745697629981,0.7823,1816.5,1816.3,5.50559479]
[1745697630142,0.7823,1816.5,1816.4,0.55055948]
[1745697630480,0.7823,1816.5,1816.1,7.49183918]
[1745697630481,0.7823,1816.5,1816.1,6.71523918]
[1745697630637,0.7823,1816.5,1816.2,5.5059868]
[1745697632471,0.7823,1816.5,1816.3,5.50564558]
[1745697632878,1.1921601,1816.8,1816.5,5.50482426]
[1745697633179,0.4098601,1816.8,1816.7,9.28108615]
[1745697633350,0.4098601,1816.8,1816.7,8.97041603]
[1745697633740,0.4098601,1816.8,1816.7,4.47857685]
[1745697633967,0.4098601,1816.8,1816.7,9.983063]
[1745697634537,0.4098601,1816.8,1816.7,1.47857685]
[1745697634740,1.1965601,1816.8,1816.6,3.0]
[1745697634975,0.4098601,1816.8,1816.6,8.55966736]
[1745697635182,0.4098601,1816.8,1816.6,8.50462689]
[1745697635473,0.4098601,1816.8,1816.6,3.0]
[1745697635643,0.4098601,1816.8,1816.7,3.71523918]
[1745697635843,0.4098601,1816.8,1816.7,4.3867631]